{"text_format":"1","workbook":"xlsx","n_sheets":8,"sheets":["NewTab","Index","DE232_3A","DE232_3B","DE232_3C","DE232_7","DE232_10","DE232_11"],"not_rendered":{"charts":0,"images":6,"macros":1,"external_links":0,"defined_names":0,"comments":0,"pivot_tables":0},"unopened":[],"bounds":{"document_bytes":16777216,"sheet_cells":100000,"rows_first":2000,"rows_last":500,"rows_between":2000,"halvings":0,"cell_chars":16384,"cell_head_chars":4096},"cells_cut":0,"cells_raw":0,"read":"whole","date_system":"1900"}

{"sheet":"NewTab","index":0,"n_rows":17,"n_cols":2,"rows_kept":17,"cut":false,"hidden":true,"merged":[]}
["TabTitle",{"$f":"C15","v":0}]
["Number of Tab Columns"]
["DE Starter Row Number"]
["TabSheet Starter Row Number"]
["TabSheet Header Row Count"]
["Top Header Cell"]
["Bottom Header Cell"]
["DESheet Row Count",0]
["Fixed Empty Rows",10]
["Usable Empty Rows",0]
["Total Rows Placed",0]
["Total Rows Needed",{"$f":"SUM(B8:B10)","v":10}]
["Last Tab DE Starter Row",0]
["Last Tab TabSheet Starter Row",0]
["Last Copy Starter Row",0]
["Tab Loop Number",0]
["Revision Date"]

{"sheet":"Index","index":1,"n_rows":123,"n_cols":2,"rows_kept":123,"cut":false,"hidden":true,"merged":[]}
["100-0A","1997-10-28"]
["100-1A","1997-07-15"]
["100-1B","2002-10-29"]
["100-1C","1997-07-15"]
["100-1D","2005-10-18"]
["100-4A","2002-10-29"]
["100-7","2010-04-20"]
["100-11","1998-10-27"]
["100-12","2001-04-03"]
["100-12A","1989-02-28"]
["100-13","2010-04-20"]
["100-14","2010-04-20"]
["100-15","2010-04-20"]
["100-16","2009-04-21"]
["100-17","2010-04-20"]
["100-18","2010-04-20"]
["102-3","2010-04-20"]
["102-4","2010-04-20"]
["102-5","2002-10-29"]
["102-5A","2004-04-20"]
["102-6C","2004-10-19"]
["102-10","1993-06-15"]
["102-11","2001-10-02"]
["102-12","2001-10-02"]
["102-13","1993-02-23"]
["102-13A","2002-10-29"]
["102-14","2002-10-29"]
["102-15","2002-10-29"]
["102-16","2000-10-03"]
["103-1","1981-05-22"]
["103-3","2002-10-29"]
["103-4","1998-10-27"]
["103-5","2006-10-17"]
["103-6","1981-05-22"]
["103-7","2008-04-15"]
["104-3  ","2009-10-20"]
["104-3A ","2005-04-19"]
["104-4","2009-10-20"]
["104-5","---"]
["104-5A","2010-04-20"]
["104-5B","2010-04-20"]
["104-5C","2004-04-20"]
["104-8","2006-10-17"]
["104-8A","2010-04-20"]
["104-9","2009-10-20"]
["104-10","2002-10-29"]
["104-11","2002-10-29"]
["104-12","2002-10-29"]
["105-1","1994-09-27"]
["105-3","2005-10-18"]
["105-4","2010-04-20"]
["106-1","2002-10-29"]
["106-2","2002-10-29"]
["106-3","2002-10-29"]
["106-4","1986-04-01"]
["106-5","1986-04-01"]
["106-7","1993-10-22"]
["106-8","1993-02-23"]
["107-5","1987-07-21"]
["107-7","1985-08-20"]
["107-20","1989-04-04"]
["107-21","1968-06-20"]
["107-22","1976-06-25"]
["107-23","2010-04-20"]
["107-24","2008-04-15"]
["107-25","1982-02-12"]
["107-26","1983-11-10"]
["107-27A","2001-04-03"]
["107-27B","2001-04-03"]
["107-28","2001-04-03"]
["107-29","2001-04-03"]
["107-30","2001-04-03"]
["108-1","2000-02-11"]
["108-2","1985-08-20"]
["108-2A","2002-10-29"]
["108-8A","2010-04-20"]
["108-8B","2010-04-20"]
["108-8D","2010-04-20"]
["108-9","---"]
["108-9A","2010-04-20"]
["108-11","1985-08-20"]
["108-11A","2002-10-29"]
["108-12","2000-02-11"]
["108-13A","1997-10-28"]
["108-15","1974-08-30"]
["108-16","2002-10-29"]
["108-17","---"]
["108-18","2010-04-20"]
["108-18B","2010-04-20"]
["108-22","2010-04-20"]
["108-23","1989-04-04"]
["108-23A","2002-10-29"]
["108-24","1997-10-28"]
["108-25","---"]
["108-26","1988-08-30"]
["108-26A","2002-10-29"]
["108-27","1996-04-30"]
["108-28","2006-04-18"]
["108-29","1998-04-28"]
["108-30","2010-04-20"]
["108-31","---"]
["108-32","---"]
["108-33","2008-04-15"]
["108-34","2009-10-20"]
["110-1","2005-04-19"]
["110-2","1972-10-13"]
["110-3","1985-08-20"]
["110-4","1995-03-28"]
["110-5","1972-10-13"]
["110-6","1984-06-22"]
["111-2","1989-02-28"]
["111-22","1989-02-28"]
["111-23","2002-10-29"]
["111-25","2009-04-21"]
["112-3","1971-03-19"]
["112-4","2010-04-20"]
["112-5","1980-04-18"]
["112-6","2008-10-21"]
["112-6A","---"]
["112-7","2005-10-18"]
["112-8 ","2010-04-20"]
["112-9 ","2009-04-21"]
["112-10","2010-04-20"]

{"sheet":"DE232_3A","index":2,"n_rows":41,"n_cols":5,"rows_kept":41,"cut":false,"hidden":false,"merged":[[14,2,17,2],[16,4,19,4]]}
["TabTitle",{"$f":"C15","v":"EROSION CONTROL\n(RURAL SEEDING)"}]
["Number of Tab Columns",1]
["DE Starter Row Number",20]
["TabSheet Starter Row Number",7]
["TabSheet Header Row Count",6]
["Top Header Cell","E15"]
["Bottom Header Cell","E20"]
["DESheet Row Count",22]
["Fixed Empty Rows",0]
["Usable Empty Rows",0]
["Total Rows Placed",22,"xlLeft",null,{"$f":"C11","v":"xlLeft"}]
["Total Rows Needed",{"$f":"SUM(B8:B10)","v":22},"General",null,{"$f":"C12","v":"General"}]
["Last Tab DE Starter Row",20,{"$f":"CELL(\"width\",C13)","v":78},null,{"$f":"CELL(\"width\",E13)","v":0}]
["Last Tab Tabsheet Starter Row",7,"A",null,"a"]
["Last Copy Starter Row",1,"EROSION CONTROL\n(RURAL SEEDING)",null,"232-3A"]
["Tab Loop Number",2,null,null,{"$f":"B17","v":"2021-10-19"}]
["Revision Date","2021-10-19",null,null,{"$f":"C15","v":"EROSION CONTROL\n(RURAL SEEDING)"}]
["Tabulation Width",1]
["Horizontal Grid Lines","No",{"$f":"\"This Data Entry Sheet fills Tab \"&E15&\" effective \"&TEXT(B17,\"mm-dd-yy\")","v":"This Data Entry Sheet fills Tab 232-3A effective 10-19-21"}]
[null,null,"Area to be seeded is estimated to be less than 1 acre. If the"]
[null,null,"contractor determines the area exceeds 2 acres, notify the"]
[null,null,"Engineer. Approved quantity in excess of 2 acres will be paid"]
[null,null,"for as extra work according to Article 1109.03,B of the"]
[null,null,"Standard Specifications."]
[]
[null,null,"Following the completion of work in a disturbed area and"]
[null,null,"according to the seeding dates in Section 2601 of the Standard"]
[null,null,"Specifications, place seed, fertilizer, and mulch on the"]
[null,null,"disturbed area lying 8 feet adjacent to shoulder and median as"]
[null,null,"follows:"]
[]
[null,null,"   Place seed and fertilize according to the requirements of"]
[null,null,"   Article 2601.03,C,3 and Section 4169 of the Standard"]
[null,null,"   Specifications."]
[]
[null,null,"   Place mulch according to the requirements of Articles"]
[null,null,"   2601.03,E,2,a and 4169.07,A of the Standard Specifications."]
[]
[null,null,"Preparing the seedbed, furnishing and applying seed,"]
[null,null,"fertilizer, and mulch are all incidental to mobilization and"]
[null,null,"will not be paid for separately."]

{"sheet":"DE232_3B","index":3,"n_rows":40,"n_cols":5,"rows_kept":40,"cut":false,"hidden":false,"merged":[[14,2,17,2],[16,4,19,4]]}
["TabTitle",{"$f":"C15","v":"EROSION CONTROL\n(URBAN SEEDING)"}]
["Number of Tab Columns",1]
["DE Starter Row Number",20]
["TabSheet Starter Row Number",7]
["TabSheet Header Row Count",6]
["Top Header Cell","E15"]
["Bottom Header Cell","E20"]
["DESheet Row Count",21]
["Fixed Empty Rows",0]
["Usable Empty Rows",0]
["Total Rows Placed",21,"xlLeft",null,{"$f":"C11","v":"xlLeft"}]
["Total Rows Needed",{"$f":"SUM(B8:B10)","v":21},"General",null,{"$f":"C12","v":"General"}]
["Last Tab DE Starter Row",20,{"$f":"CELL(\"width\",C13)","v":78},null,{"$f":"CELL(\"width\",E13)","v":0}]
["Last Tab Tabsheet Starter Row",7,"A",null,"a"]
["Last Copy Starter Row",1,"EROSION CONTROL\n(URBAN SEEDING)",null,"232-3B"]
["Tab Loop Number",2,null,null,{"$f":"B17","v":"2021-10-19"}]
["Revision Date","2021-10-19",null,null,{"$f":"C15","v":"EROSION CONTROL\n(URBAN SEEDING)"}]
["Tabulation Width",1]
["Horizontal Grid Lines","No",{"$f":"\"This Data Entry Sheet fills Tab \"&E15&\" effective \"&TEXT(B17,\"mm-dd-yy\")","v":"This Data Entry Sheet fills Tab 232-3B effective 10-19-21"}]
[null,null,"Area to be seeded is estimated to be less than 1 acre. If the"]
[null,null,"Contractor determines the area exceeds 2 acres, notify the"]
[null,null,"Engineer. Approved quantity in excess of 2 acres will be paid"]
[null,null,"for as extra work according to Article 1109.03,B of the"]
[null,null,"Standard Specifications."]
[]
[null,null,"Following the completion of work in a disturbed area and"]
[null,null,"according to the seeding dates in Section 2601 of the Standard"]
[null,null,"Specifications, place seed, fertilizer, and mulch on the"]
[null,null,"disturbed area as follows:"]
[]
[null,null,"   Place seed and fertilize according to the requirements of"]
[null,null,"   Article 2601.03,C,4 and Section 4169 of the Standard"]
[null,null,"   Specifications."]
[]
[null,null,"   Place mulch according to the requirements of Articles"]
[null,null,"   2601.03,E,2,a and 4169.07,A of the Standard Specifications."]
[null,null," "]
[null,null,"Preparing the seedbed, furnishing and applying seed,"]
[null,null,"fertilizer, and mulch are incidental to mobilization and will"]
[null,null,"not be paid for separately."]

{"sheet":"DE232_3C","index":4,"n_rows":59,"n_cols":5,"rows_kept":59,"cut":false,"hidden":false,"merged":[[14,2,17,2],[16,4,19,4]]}
["TabTitle",{"$f":"C15","v":"EROSION CONTROL\n(NATIVE GRASS SEEDING)"}]
["Number of Tab Columns",1]
["DE Starter Row Number",20]
["TabSheet Starter Row Number",7]
["TabSheet Header Row Count",6]
["Top Header Cell","E15"]
["Bottom Header Cell","E20"]
["DESheet Row Count",40]
["Fixed Empty Rows",0]
["Usable Empty Rows",0]
["Total Rows Placed",40,"xlLeft",null,{"$f":"C11","v":"xlLeft"}]
["Total Rows Needed",{"$f":"SUM(B8:B10)","v":40},"General",null,{"$f":"C12","v":"General"}]
["Last Tab DE Starter Row",20,{"$f":"CELL(\"width\",C13)","v":78},null,{"$f":"CELL(\"width\",E13)","v":0}]
["Last Tab Tabsheet Starter Row",7,"A",null,"a"]
["Last Copy Starter Row",1,"EROSION CONTROL\n(NATIVE GRASS SEEDING)",null,"232-3C"]
["Tab Loop Number",2,null,null,{"$f":"B17","v":"2021-10-19"}]
["Revision Date","2021-10-19",null,null,{"$f":"C15","v":"EROSION CONTROL\n(NATIVE GRASS SEEDING)"}]
["Tabulation Width",1]
["Horizontal Grid Lines","No",{"$f":"\"This Data Entry Sheet fills Tab \"&E15&\" effective \"&TEXT(B17,\"mm-dd-yy\")","v":"This Data Entry Sheet fills Tab 232-3C effective 10-19-21"}]
[null,null,"Area to be seeded is estimated to be less than 1 acre. If the"]
[null,null,"Contractor determines the area exceeds 2 acres, notify the"]
[null,null,"Engineer. Approved quantity in excess of 2 acres will be paid"]
[null,null,"for as extra work according to Article 1109.03,B of the"]
[null,null,"Standard Specifications."]
[]
[null,null,"Following the completion of work in a disturbed area and"]
[null,null,"according to the seeding dates in Section 2601 of the Standard"]
[null,null,"Specifications, place seed and mulch on the disturbed area"]
[null,null,"lying 8 feet or more beyond the shoulder as follows:"]
[]
[null,null,"SEED MIX:"]
[null,null,"Big bluestem (Andropogon geradii)  6 lbs. PLS/Acre (7.0 kg/ha)"]
[null,null,"Indiangrass (Sorghastrum nutans)   6 lbs. PLS/Acre (7.0 kg/ha)"]
[null,null,"Little bluestem (Schizachyrium scoparium)"]
[null,null,"                                   6 lbs. PLS/Acre (7.0 kg/ha)"]
[null,null,"Partridge Pea (Chamaecrista fasciculata)"]
[null,null,"                                   4 lbs. PLS/Acre (4.5 kg/ha)"]
[null,null,"Sideoats grama (Bouteloua curtipendula)"]
[null,null,"                                   4 lbs. PLS/Acre (4.5 kg/ha)"]
[null,null,"Canada wildrye (Elymus canadensis) 2 lbs. PLS/Acre (2.2 kg/ha)"]
[null,null,"Switchgrass (Panicum virgatum)     1 lbs. PLS/Acre (1.1 kg/ha)"]
[null,null,"Oats (Avena sativa)                32 lbs./Acre (36.0 kg/ha)"]
[]
[null,null,"Furnish Big bluestem, Indiangrass, Canada wildrye and Little"]
[null,null,"bluestem that is debearded or equal to facilitate the"]
[null,null,"application of seed."]
[]
[null,null,"Furnish seed certified as Source Identified Class (Yellow Tag)"]
[null,null,"Source G0-Iowa. Oats are excluded from this requirement."]
[]
[null,null,"Place seed according to the requirements of Article 4169.02 of"]
[null,null,"the Standard Specifications."]
[]
[null,null,"Place mulch according to the requirements of Articles"]
[null,null,"2601.03,E,2,a and 4169.07,A of the Standard Specifications."]
[null,null," "]
[null,null,"Preparing the seedbed, furnishing and applying seed and mulch"]
[null,null,"are incidental to mobilization and will not be paid for"]
[null,null,"separately."]

{"sheet":"DE232_7","index":5,"n_rows":34,"n_cols":5,"rows_kept":34,"cut":false,"hidden":false,"merged":[[14,2,17,2],[16,4,19,4]]}
["TabTitle",{"$f":"C15","v":"EROSION CONTROL\n(SALVAGE AND REMOVAL PROJECTS)"}]
["Number of Tab Columns",1]
["DE Starter Row Number",20]
["TabSheet Starter Row Number",7]
["TabSheet Header Row Count",6]
["Top Header Cell","E15"]
["Bottom Header Cell","E20"]
["DESheet Row Count",15]
["Fixed Empty Rows",0]
["Usable Empty Rows",0]
["Total Rows Placed",15,"xlLeft",null,{"$f":"C11","v":"xlLeft"}]
["Total Rows Needed",{"$f":"SUM(B8:B10)","v":15},"General",null,{"$f":"C12","v":"General"}]
["Last Tab DE Starter Row",20,{"$f":"CELL(\"width\",C13)","v":78},null,{"$f":"CELL(\"width\",E13)","v":0}]
["Last Tab Tabsheet Starter Row",7,"A",null,"a"]
["Last Copy Starter Row",1,"EROSION CONTROL\n(SALVAGE AND REMOVAL PROJECTS)",null,"232-7"]
["Tab Loop Number",2,null,null,{"$f":"B17","v":"2012-10-16"}]
["Revision Date","2012-10-16",null,null,{"$f":"C15","v":"EROSION CONTROL\n(SALVAGE AND REMOVAL PROJECTS)"}]
["Tabulation Width",1]
["Horizontal Grid Lines","No",{"$f":"\"This Data Entry Sheet fills Tab \"&E15&\" effective \"&TEXT(B17,\"mm-dd-yy\")","v":"This Data Entry Sheet fills Tab 232-7 effective 10-16-12"}]
[null,null,"Following the completion of work in a disturbed area, place seed"]
[null,null,"and fertilize the disturbed area as follows:"]
[]
[null,null,"SEEDING:"]
[null,null,"3 lbs. of Tall Fescue (Fawn) per 1000 sq. ft."]
[]
[null,null,"FERTILIZER:"]
[null,null,"17 lbs. of 13-13-13 (or equivalent) commercial fertilizer per 1000"]
[null,null,"sq. ft."]
[]
[null,null,"ESTIMATED AREA: _____________ acres."]
[]
[null,null,"Preparing the seedbed and furnishing and applying seed and"]
[null,null,"fertilizer is incidental to mobilization and will not be paid for"]
[null,null,"separately."]

{"sheet":"DE232_10","index":6,"n_rows":39,"n_cols":5,"rows_kept":39,"cut":false,"hidden":false,"merged":[[14,2,15,2],[16,4,17,4]]}
["TabTitle",{"$f":"C15","v":"EMERALD ASH BORER"}]
["Number of Tab Columns",1]
["DE Starter Row Number",18]
["TabSheet Starter Row Number",5]
["TabSheet Header Row Count",4]
["Top Header Cell","E15"]
["Bottom Header Cell","E18"]
["DESheet Row Count",22]
["Fixed Empty Rows",0]
["Usable Empty Rows",0]
["Total Rows Placed",22,"xlLeft",null,{"$f":"C11","v":"xlLeft"}]
["Total Rows Needed",{"$f":"SUM(B8:B10)","v":22},"General",null,{"$f":"C12","v":"General"}]
["Last Tab DE Starter Row",18,{"$f":"CELL(\"width\",C13)","v":77},null,{"$f":"CELL(\"width\",E13)","v":0}]
["Last Tab Tabsheet Starter Row",5,"A",null,"a"]
["Last Copy Starter Row",1,"EMERALD ASH BORER",null,"232-10"]
["Tab Loop Number",2,null,null,{"$f":"B17","v":"2017-04-18"}]
["Revision Date","2017-04-18",{"$f":"\"This Data Entry Sheet fills Tab \"&E15&\" effective \"&TEXT(B17,\"mm-dd-yy\")","v":"This Data Entry Sheet fills Tab 232-10 effective 04-18-17"},null,{"$f":"C15","v":"EMERALD ASH BORER"}]
["Tabulation Width",1,"Any living, dead, cut or fallen material of the ash (Fraxinus"]
["Horizontal Grid Lines","No","spp.) including trees, nursery stock, logs, firewood, stumps,"]
[null,null,"roots, branches, and composted or uncomposted ash chips can be"]
[null,null,"freely moved within the yellow areas of the most recent Federal"]
[null,null,"EAB Quarantine & Authorized Transit."]
[]
[null,null,"https://www.aphis.usda.gov/plant_health/plant_pest_info/emerald_"]
[null,null,"ash_b/downloads/eab_quarantine_map.pdf."]
[]
[null,null,"Obtain appropriate Compliance Agreements from USDA APHIS PPQ prior"]
[null,null,"to moving any of the above listed ash articles to areas outside"]
[null,null,"the yellow zone on the map."]
[]
[null,null,"For questions, concerns, and general assistance, contact: "]
[]
[null,null,"USDA APHIS PPQ, Iowa office, 515-414-3295 "]
[]
[null,null,"Or"]
[]
[null,null,"Iowa Department of Agriculture & Land Stewardship"]
[null,null,"515-725-1470"]
[null,null,"Entomology@IowaAgriculture.gov"]

{"sheet":"DE232_11","index":7,"n_rows":40,"n_cols":5,"rows_kept":40,"cut":false,"hidden":false,"merged":[[14,2,17,2],[16,4,19,4]]}
["TabTitle",{"$f":"C15","v":"EROSION CONTROL\n(STABILIZING CROP SEEDING)"}]
["Number of Tab Columns",1]
["DE Starter Row Number",20]
["TabSheet Starter Row Number",7]
["TabSheet Header Row Count",6]
["Top Header Cell","E15"]
["Bottom Header Cell","E20"]
["DESheet Row Count",21]
["Fixed Empty Rows",0]
["Usable Empty Rows",0]
["Total Rows Placed",21,"xlLeft",null,{"$f":"C11","v":"xlLeft"}]
["Total Rows Needed",{"$f":"SUM(B8:B10)","v":21},"General",null,{"$f":"C12","v":"General"}]
["Last Tab DE Starter Row",20,{"$f":"CELL(\"width\",C13)","v":78},null,{"$f":"CELL(\"width\",E13)","v":0}]
["Last Tab Tabsheet Starter Row",7,"A",null,"a"]
["Last Copy Starter Row",1,"EROSION CONTROL\n(STABILIZING CROP SEEDING)",null,"232-11"]
["Tab Loop Number",2,null,null,{"$f":"B17","v":"2021-10-19"}]
["Revision Date","2021-10-19",null,null,{"$f":"C15","v":"EROSION CONTROL\n(STABILIZING CROP SEEDING)"}]
["Tabulation Width",1]
["Horizontal Grid Lines","No",{"$f":"\"This Data Entry Sheet fills Tab \"&E15&\" effective \"&TEXT(B17,\"mm-dd-yy\")","v":"This Data Entry Sheet fills Tab 232-11 effective 10-19-21"}]
[null,null,"Area to be seeded is estimated to be less than 1 acre. If the"]
[null,null,"contractor determines the area exceeds 2 acres, notify the"]
[null,null,"Engineer. Approved quantity in excess of 2 acres will be paid"]
[null,null,"for as extra work according to Article 1109.03,B of the"]
[null,null,"Standard Specifications."]
[]
[null,null,"If outside of permanent seeding dates in Section 2601 of the"]
[null,null,"Standard Specifications, or if required by a storm water"]
[null,null,"permit, place stabilizing crop, fertilizer, and mulch on the"]
[null,null,"disturbed area as follows:"]
[]
[null,null,"   Place seed and fertilize according to the requirements of"]
[null,null,"   Article 2601.03,C,1 and Section 4169 of the Standard"]
[null,null,"   Specifications."]
[]
[null,null,"   Place mulch according to the requirements of Articles"]
[null,null,"   2601.03,E,2,a and 4169.07,A of the Standard Specifications."]
[]
[null,null,"Preparing the seedbed, furnishing and applying seed,"]
[null,null,"fertilizer, and mulch are incidental to mobilization and will"]
[null,null,"will not be paid for separately."]